fUST/lending_fUST_20251119
["ID","MTS","AMOUNT","RATE_DAILY","PERIOD"]
[394422039,1763556644996,-180.001427,0.00019178,2]
[394422040,1763556645006,-180.001427,0.00019178,2]
[394422041,1763556645016,-180.001427,0.00019178,2]
[394422042,1763556645026,-180.001427,0.00019178,2]
[394422043,1763556645036,-180.001427,0.00019178,2]
[394422044,1763556645046,-180.001427,0.00019178,2]
[394422045,1763556645055,-153.84547182,0.00019178,2]
[394422046,1763556645065,-795.0,0.00019201,2]
[394422047,1763556645075,-795.0,0.00019209,2]
[394422048,1763556645085,-860.0,0.00019217,2]
[394422049,1763556645094,-795.0,0.00019224,2]
[394422050,1763556645104,-795.0,0.00019225,2]
[394422051,1763556645114,-795.0,0.00019226,2]
[394422052,1763556645123,-5888.0,0.00019286,2]
[394422053,1763556645133,-151.0,0.00019286,7]
[394422054,1763556645142,-795.0,0.00019302,2]
[394422055,1763556645152,-3496.0,0.00019466,2]
[394422056,1763556645161,-1325.161093,0.0001951,2]
[394422057,1763556645173,-4500.0,0.00019572,2]
[394422058,1763556645182,-4500.0,0.00019572,2]
[394422059,1763556645191,-4500.0,0.00019572,2]
[394422060,1763556645199,-4185.0,0.0001967,2]
[394422061,1763556645209,-960.0,0.00019765,2]
[394422062,1763556645218,-180.001427,0.00019893,7]
[394422063,1763556645227,-180.001427,0.00019893,7]
[394422064,1763556645237,-180.001427,0.00019893,7]
[394422065,1763556645246,-180.001427,0.00019893,7]
[394422066,1763556645255,-19007.0,0.000199,2]
[394422067,1763556645264,-707.637491,0.0001999,2]
[394422068,1763556645273,-955.0,0.0002,2]
[394422069,1763556645282,-240.0,0.0002,2]
[394422070,1763556645291,-501.38434486,0.0002,2]
[394422071,1763556645300,-400.87691731,0.0002,7]
[394422072,1763556645310,-11655.35572389,0.0002,2]
[394422073,1763556645319,-14616.89995151,0.0002,2]
[394422074,1763556645328,-251.78698765,0.0002,21]
[394422075,1763556645338,-2990.4548575,0.0002,20]
[394422076,1763556645347,-150.00013677,0.0002,7]
[394422077,1763556645356,-369.51969723,0.0002,2]
[394422078,1763556645365,-23000.0,0.0002,2]
[394422079,1763556645374,-201.5101141,0.0002,2]
[394422080,1763556645384,-151.33355125,0.0002,2]
[394422081,1763556645394,-1007.92764,0.0002,2]
[394422082,1763556645403,-150.0,0.0002,2]
[394422083,1763556645412,-2000.0,0.0002,7]
[394422084,1763556645423,-630.0,0.00020014,2]
[394422085,1763556645432,-1024.734,0.00020014,2]
[394422086,1763556645442,-2151.0,0.00020014,2]
[394422087,1763556645451,-500.0,0.00020115,2]
[394422088,1763556645461,-501.18009364,0.00020115,2]
[394422089,1763556645471,-500.0,0.00020115,2]
[394422090,1763556645480,-505.60972619,0.00020115,2]
[394422091,1763556645489,-500.0,0.00020115,2]
[394422092,1763556645498,-311.50708598,0.0002012,2]
[394422093,1763556645508,-5000.0,0.0002012,2]
[394422094,1763556645517,-3013.00731581,0.0002012,2]
[394422095,1763556645526,-500.0,0.00020169,2]
[394422096,1763556645536,-500.0,0.00020169,2]
[394422097,1763556645545,-500.0,0.00020169,2]
[394422098,1763556645554,-500.0,0.00020169,2]
[394422099,1763556645563,-500.0,0.00020169,2]
[394422100,1763556645572,-501.65067781,0.00020169,2]
[394422101,1763556645581,-500.70555796,0.00020169,2]
[394422102,1763556645590,-500.0,0.00020169,2]
[394422103,1763556645599,-513.38764164,0.00020169,2]
[394422104,1763556645609,-500.0,0.00020169,2]
[394422105,1763556645618,-500.0,0.00020169,2]
[394422106,1763556645627,-500.0,0.00020169,2]
[394422107,1763556645636,-165.48732767,0.00020169,2]
[394422108,1763556645645,-500.0,0.00020169,2]
[394422109,1763556645654,-500.0,0.00020169,2]
[394422110,1763556645663,-500.0,0.00020185,2]
[394422111,1763556645673,-500.0,0.00020185,2]
[394422112,1763556645682,-978.942055,0.00020187,2]
[394422113,1763556645691,-159.45125689,0.00020212,5]
[394422114,1763556645702,-169.77055211,0.00020212,5]
[394422115,1763556645711,-4185.0,0.00020267,2]
[394422116,1763556645720,-1060.0,0.00020312,2]
[394422117,1763556645730,-160.0,0.00020391,2]
[394422118,1763556645739,-400.87691731,0.00020391,2]
[394422119,1763556645747,-160.0,0.00020398,2]
[394422120,1763556645756,-2788.421631,0.00020548,2]
[394422121,1763556645766,-151.0,0.00020548,3]
[394422122,1763556645775,-151.0,0.00020548,3]
[394422123,1763556645784,-151.0,0.00020548,3]
[394422124,1763556645794,-151.0,0.00020548,3]
[394422125,1763556645803,-159.28056,0.00020548,3]
[394422126,1763556645812,-151.0,0.00020548,7]
[394422127,1763556645821,-151.0,0.00020548,7]
[394422128,1763556645830,-5888.0,0.0002055,2]
[394422129,1763556645839,-1381.26804338,0.0002061,2]
[394422130,1763556645848,-864.0,0.00020642,2]
[394422131,1763556645858,-151.0,0.00020642,7]
[394422132,1763556645867,-1000.0,0.00020663,2]
[394422133,1763556645876,-1000.0,0.00020663,2]
[394422134,1763556645886,-1000.0,0.00020663,2]
[394422135,1763556645895,-5500.0,0.00020668,2]
[394422136,1763556645904,-229.41128076,0.00020717,2]
[394422137,1763556645913,-1000.0,0.00020717,2]
[394422138,1763556645922,-1015.5092663,0.00020717,2]
[394422139,1763556645931,-430.56372962,0.00020717,2]
[394422140,1763556645941,-1036.46863116,0.00020717,2]
[394422141,1763556645951,-535.99228928,0.00020717,2]
[394422142,1763556645963,-1000.0,0.00020717,2]
[394422143,1763556645972,-1003.44060064,0.00020717,2]
[394422144,1763556645982,-1000.0,0.00020717,2]
[394422145,1763556645994,-1000.0,0.00020717,2]
[394422146,1763556646003,-1000.0,0.00020717,2]
[394422147,1763556646012,-503.70002224,0.00020723,2]
[394422148,1763556646021,-500.0,0.00020723,2]
[394422149,1763556646030,-500.0,0.00020723,2]
[394422150,1763556646040,-500.0,0.00020723,2]
[394422151,1763556646050,-500.0,0.00020746,2]
[394422152,1763556646132,-1613.0,0.00020766,2]
[394422153,1763556646142,-377.89329795,0.00020775,2]
[394422154,1763556646151,-2166.43663361,0.0002079,2]
[394422155,1763556646160,-500.0,0.00020811,2]
[394422156,1763556646169,-159.45125689,0.00020837,5]
[394422157,1763556646179,-169.77055211,0.00020837,5]
[394422158,1763556646188,-1160.0,0.0002086,2]
[394422159,1763556646197,-500.0,0.00020892,2]
[394422160,1763556646206,-254.85895272,0.000209,2]
[394422161,1763556646215,-312.52983402,0.00020909,2]
[394422162,1763556646224,-500.0,0.00020923,2]
[394422163,1763556646234,-275.63626958,0.00021,2]
[394422164,1763556646243,-1548.30889292,0.00021,10]
[394422165,1763556646252,-11192.98062165,0.00021,2]
[394422174,1763556647382,-24772.28836042,0.00021,2]
[394422175,1763556647408,-301.08791818,0.00013065,2]
[394422176,1763556647423,-15699.05749023,0.00013065,2]
[394422177,1763556647435,-14034.73101793,0.00021,2]
[394422178,1763556647447,-150.0,0.00021,2]
[394422179,1763556647459,-180.001427,0.00021,7]
[394422180,1763556647472,-180.001427,0.00021,7]
[394422181,1763556647484,-180.001427,0.00021,7]
[394422182,1763556647493,-180.001422,0.00021,7]
[394422183,1763556647504,-5888.0,0.00021022,2]
[394422184,1763556647513,-500.0,0.00021133,2]
[394422185,1763556647523,-158.67368353,0.00021133,2]
[394422186,1763556647532,-500.0,0.00021133,2]
[394422187,1763556647542,-503.98742164,0.00021133,2]
[394422188,1763556647551,-307.76207752,0.00021133,2]
[394422189,1763556647560,-500.0,0.00021133,2]
[394422190,1763556647570,-500.0,0.00021133,2]
[394422191,1763556647579,-500.0,0.00021133,2]
[394422192,1763556647590,-500.0,0.00021133,2]
[394422193,1763556647606,-172.55388676,0.00021133,2]
[394422194,1763556647616,-511.88823861,0.00021133,2]
[394422195,1763556647625,-500.28151942,0.00021133,2]
[394422196,1763556647635,-500.0,0.00021133,2]
[394422197,1763556647644,-453.81206981,0.00021133,2]
[394422198,1763556647654,-500.0,0.00021133,2]
[394422199,1763556647663,-500.0,0.00021133,2]
[394422200,1763556647673,-501.23064018,0.00021133,2]
[394422201,1763556647823,-500.0,0.00021133,2]
[394422202,1763556647834,-500.0,0.00021133,2]
[394422203,1763556647843,-162.85610517,0.00021133,2]
[394422204,1763556647852,-500.0,0.00021133,2]
[394422205,1763556647861,-445.69250355,0.00021133,2]
[394422206,1763556647870,-500.0,0.00021133,2]
[394422207,1763556647879,-500.0,0.00021133,2]
[394422208,1763556647889,-500.0,0.00021133,2]
[394422209,1763556647898,-500.0,0.00021133,2]
[394422210,1763556647907,-500.0,0.00021133,2]
[394422211,1763556647916,-470.80631433,0.00021133,2]
[394422212,1763556647927,-500.0,0.00021133,2]
[394422213,1763556647936,-500.0,0.00021133,2]
[394422214,1763556647945,-506.25578774,0.00021133,2]
[394422215,1763556647955,-1500.0,0.00021211,2]
[394422216,1763556647964,-1500.0,0.00021211,2]
[394422217,1763556647973,-610.10221103,0.00021211,2]
[394422218,1763556647982,-842.14851202,0.00021216,2]
[394422219,1763556647992,-1540.56070445,0.00021265,2]
[394422220,1763556648003,-193.56543964,0.00021265,2]
[394422221,1763556648012,-1500.0,0.00021265,2]
[394422222,1763556648021,-1514.93271038,0.00021265,2]
[394422223,1763556648030,-1500.0,0.00021265,2]
[394422224,1763556648040,-501.01226821,0.00021271,2]
[394422225,1763556648049,-1002.68621881,0.00021271,2]
[394422226,1763556648058,-183.10083734,0.00021271,2]
[394422227,1763556648067,-1000.0,0.00021294,2]
[394422228,1763556648077,-1260.0,0.00021408,2]
[394422229,1763556648086,-169.77055211,0.00021488,5]
[394422230,1763556648096,-1000.0,0.00021681,2]
[394422231,1763556648105,-458.60908153,0.00021681,2]
[394422232,1763556648115,-501.61884464,0.00021681,2]
[394422233,1763556648124,-424.07590189,0.00021681,2]
[394422234,1763556648133,-373.07139652,0.00021681,2]
[394422235,1763556648142,-811.0902021,0.00021681,2]
[394422236,1763556648151,-1000.0,0.00021681,2]
[394422237,1763556648160,-1000.0,0.00021681,2]
[394422238,1763556648169,-1000.0,0.00021681,2]
[394422239,1763556648179,-1000.0,0.00021681,2]
[394422240,1763556648188,-517.96370823,0.00021681,2]
[394422241,1763556648197,-507.23390965,0.00021681,2]
[394422242,1763556648206,-1000.0,0.00021681,2]
[394422243,1763556648215,-1000.0,0.00021681,2]
[394422244,1763556648223,-1004.58010999,0.00021681,2]
[394422245,1763556648232,-631.4111994,0.00021681,2]
[394422246,1763556648241,-505.05635559,0.00021681,2]
[394422247,1763556648252,-1000.0,0.00021681,2]
[394422248,1763556648262,-406.61442334,0.00021753,2]
[394422249,1763556648271,-1735.96333372,0.00021759,2]
[394422250,1763556648280,-1987.15738357,0.00021759,2]
[394422251,1763556648290,-1500.0,0.00021813,2]
[394422252,1763556648299,-604.48,0.00021917,2]
[394422253,1763556648308,-840.5469122,0.00021918,7]
[394422254,1763556648317,-313.466892,0.00021918,2]
[394422255,1763556648327,-313.466892,0.00021918,2]
[394422256,1763556648336,-313.466892,0.00021918,2]
[394422257,1763556648345,-313.466892,0.00021918,2]
[394422258,1763556648354,-313.466892,0.00021918,2]
[394422259,1763556648363,-313.466892,0.00021918,2]
[394422260,1763556648372,-313.466892,0.00021918,2]
[394422261,1763556648381,-313.466892,0.00021918,2]
[394422262,1763556648390,-313.466892,0.00021918,2]
[394422263,1763556648399,-313.466892,0.00021918,2]
[394422264,1763556648408,-313.466892,0.00021918,2]
[394422265,1763556648417,-313.466892,0.00021918,2]
[394422266,1763556648427,-313.466892,0.00021918,2]
[394422267,1763556648436,-313.466892,0.00021918,2]
[394422268,1763556648445,-313.466892,0.00021918,2]
[394422269,1763556648455,-313.466892,0.00021918,2]
[394422270,1763556648464,-313.466892,0.00021918,2]
[394422271,1763556648473,-313.466892,0.00021918,2]
[394422272,1763556648482,-313.466892,0.00021918,2]
[394422273,1763556648491,-313.466882,0.00021918,2]
[394422274,1763556648500,-151.0,0.00021918,7]
[394422275,1763556648509,-151.0,0.00021918,7]
[394422276,1763556648518,-151.0,0.00021918,7]
[394422277,1763556648527,-151.0,0.00021918,7]
[394422278,1763556648536,-151.0,0.00021918,7]
[394422279,1763556648546,-151.0,0.00021918,7]
[394422280,1763556648555,-151.0,0.00021918,7]
[394422281,1763556648564,-151.0,0.00021918,7]
[394422282,1763556648573,-151.0,0.00021918,7]
[394422283,1763556648583,-151.0,0.00021918,7]
[394422284,1763556648592,-151.0,0.00021918,7]
[394422285,1763556648610,-151.0,0.00021918,7]
[394422286,1763556648621,-151.0,0.00021918,7]
[394422287,1763556648631,-151.0,0.00021918,7]
[394422288,1763556648641,-151.0,0.00021918,7]
[394422289,1763556648651,-151.0,0.00021918,7]
[394422290,1763556648661,-183.776336,0.00021918,7]
[394422291,1763556648670,-151.0,0.00021918,2]
[394422292,1763556648681,-151.0,0.00021918,2]
[394422293,1763556648691,-151.0,0.00021918,2]
[394422294,1763556648700,-203.1256433,0.00021918,2]
[394422295,1763556648710,-151.0,0.00021918,2]
[394422296,1763556648719,-151.0,0.00021918,2]
[394422297,1763556648729,-151.0,0.00021918,2]
[394422298,1763556648738,-151.0,0.00021918,2]
[394422299,1763556648748,-151.0,0.00021918,2]
[394422300,1763556648758,-151.0,0.00021918,2]
[394422301,1763556648768,-151.0,0.00021918,2]
[394422302,1763556648777,-151.0,0.00021918,2]
[394422303,1763556648787,-151.0,0.00021918,2]
[394422304,1763556648796,-151.0,0.00021918,2]
[394422305,1763556648806,-151.0,0.00021918,2]
[394422306,1763556648815,-151.0,0.00021918,2]
[394422307,1763556648824,-151.0,0.00021918,2]
[394422308,1763556648834,-151.0,0.00021918,2]
[394422309,1763556648843,-151.0,0.00021918,2]
[394422310,1763556648853,-151.0,0.00021918,2]
[394422311,1763556648863,-151.0,0.00021918,2]
[394422312,1763556648873,-151.0,0.00021918,2]
[394422313,1763556648882,-151.0,0.00021918,2]
[394422314,1763556648892,-151.0,0.00021918,2]
[394422315,1763556648902,-151.0,0.00021918,2]
[394422316,1763556648911,-151.0,0.00021918,2]
[394422317,1763556648921,-151.0,0.00021918,2]
[394422318,1763556648931,-151.0,0.00021918,2]
[394422319,1763556648940,-151.0,0.00021918,2]
[394422320,1763556648949,-151.0,0.00021918,2]
[394422321,1763556648959,-151.0,0.00021918,2]
[394422322,1763556648968,-151.0,0.00021918,2]
[394422323,1763556648977,-281.69655829,0.00021918,2]
[394422324,1763556648987,-1360.0,0.00021956,2]
[394422325,1763556648999,-563.56961852,0.0002196,10]
[394422326,1763556649009,-250.189,0.00021992,2]
[394422327,1763556649018,-250.0,0.00021992,2]
[394422328,1763556649027,-217.645,0.00021992,2]
[394422329,1763556649037,-237.035,0.00021992,2]
[394422330,1763556649047,-250.0,0.00021992,2]
[394422331,1763556649056,-185.344,0.00021992,2]
[394422332,1763556649067,-257.749,0.00021992,2]
[394422333,1763556649077,-265.691,0.00021992,2]
[394422334,1763556649086,-81361.47893569,0.00022,2]
[394422335,1763556649333,-3e-08,0.00022,2]
[394422336,1763556649345,-3182.9385977,0.00022,2]
[394422337,1763556649570,-1316.69078704,0.00022,2]
[394422338,1763556649596,-841.34412303,0.00022,2]
[394422339,1763556661988,166.67,5e-05,2]
[394422340,1763556662468,166.67,8.5e-05,2]
[394422345,1763556843401,410.46,0.00012329,2]
[394422347,1763556856034,-973.2450472,0.00012966,2]
[394422348,1763556859723,-477.57876359,0.00012966,2]
[394422349,1763556863901,-231.26706152,0.00012966,2]
[394422350,1763556865385,-480.89691765,0.00012966,2]
[394422351,1763556866815,-433.04447354,0.00012966,2]
[394422352,1763556868336,-192.09411889,0.00012966,2]
[394422353,1763556869774,-307.09728476,0.00012966,2]
[394422354,1763556872564,-392.70515437,0.00012966,2]
[394422355,1763556873947,-4622.70543067,0.00012966,2]
[394422356,1763556874031,-754.59913866,0.00012966,2]
[394422357,1763556874133,-1134.77660915,0.00013097,2]
[394422358,1763556874227,-476.4360016,0.00013097,2]
[394422359,1763556874261,-2745.9892199,0.00013097,2]
[394422360,1763556874523,-4508.0315602,0.00013097,2]
[394422361,1763556874533,-112.81347209,0.00013135,2]
[394422362,1763556874587,-64.78192408,0.00013135,2]
[394422363,1763556874697,-300.0,0.00013172,2]
[394422364,1763556874714,-500.0,0.00013173,2]
[394422365,1763556874723,-500.0,0.00013173,2]
[394422366,1763556874733,-500.0,0.00013173,2]
[394422367,1763556874742,-500.0,0.00013173,2]
[394422368,1763556874752,-500.0,0.00013173,2]
[394422369,1763556874762,-500.0,0.00013173,2]
[394422370,1763556874771,-500.0,0.00013173,2]
[394422371,1763556874780,-500.0,0.00013173,2]
[394422372,1763556874789,-500.0,0.00013173,2]
[394422373,1763556874798,-500.0,0.00013173,2]
[394422374,1763556874808,-500.0,0.00013173,2]
[394422375,1763556874818,-500.0,0.00013173,2]
[394422376,1763556874828,-500.0,0.00013173,2]
[394422377,1763556874837,-447.75950493,0.00013173,2]
[394422378,1763556874846,-608.17736663,0.00013195,2]
[394422379,1763556874856,-500.0,0.00013195,2]
[394422380,1763556874865,-444.51459521,0.00013195,2]
[394422381,1763556874938,-55.48540479,0.00013195,2]
[394422382,1763556874947,-859.72974342,0.00013195,2]
[394422383,1763556874958,-500.0,0.00013195,2]
[394422384,1763556874967,-859.72974342,0.00013195,2]
[394422385,1763556874976,-500.0,0.00013195,2]
[394422386,1763556874986,-859.72974342,0.00013195,2]
[394422387,1763556874995,-500.0,0.00013195,2]
[394422388,1763556875005,-859.72974342,0.00013195,2]
[394422389,1763556875014,-500.0,0.00013195,2]
[394422390,1763556875024,-859.72974342,0.00013195,2]
[394422391,1763556875033,-500.0,0.00013195,2]
[394422392,1763556875042,-399.88665821,0.00013195,2]
[394422393,1763556875140,-459.84308521,0.00013195,2]
[394422394,1763556875172,-500.0,0.00013195,2]
[394422395,1763556875201,-500.0,0.00013195,2]
[394422396,1763556875232,-859.72974342,0.00013195,2]
[394422397,1763556875263,-500.0,0.00013195,2]
[394422398,1763556875294,-859.72974342,0.00013195,2]
[394422399,1763556875324,-500.0,0.00013195,2]
[394422400,1763556875352,-500.0,0.00013195,2]
[394422401,1763556875449,-859.72974342,0.00013195,2]
[394422402,1763556875480,-500.0,0.00013195,2]
[394422403,1763556875511,-859.72974342,0.00013195,2]
[394422404,1763556875539,-500.0,0.00013195,2]
[394422405,1763556875570,-859.72974342,0.00013195,2]
[394422406,1763556875599,-500.0,0.00013195,2]
[394422407,1763556875628,-500.0,0.00013195,2]
[394422408,1763556875720,-859.72974342,0.00013195,2]
[394422409,1763556875748,-500.0,0.00013195,2]
[394422410,1763556875777,-859.72974342,0.00013195,2]
[394422411,1763556875805,-500.0,0.00013195,2]
[394422412,1763556875835,-859.72974342,0.00013195,2]
[394422413,1763556875864,-500.0,0.00013195,2]
[394422414,1763556875895,-859.72974342,0.00013195,2]
[394422415,1763556876869,-123.30665196,0.00013195,2]
[394422416,1763556876894,-376.69334804,0.00013195,2]
[394422417,1763556876903,-123.30665196,0.00013195,2]
[394422418,1763556876922,-736.42309146,0.00013195,2]
[394422419,1763556876931,-123.30665196,0.00013195,2]
[394422420,1763556876950,-94.6255056,0.00013195,2]
[394422421,1763556876958,-27.54654704,0.00013195,2]
[394422422,1763556877010,-832.18319638,0.00013195,2]
[394422423,1763556877040,-859.72974342,0.00013195,2]
[394422424,1763556877073,-500.0,0.00013195,2]
[394422425,1763556877102,-500.0,0.00013195,2]
[394422426,1763556877135,-859.72974342,0.00013195,2]
[394422427,1763556877168,-500.0,0.00013195,2]
[394422428,1763556877203,-859.72974342,0.00013195,2]
[394422429,1763556877248,-500.0,0.00013195,2]
[394422430,1763556877279,-859.72974342,0.00013195,2]
[394422431,1763556877306,-500.0,0.00013195,2]
[394422432,1763556877336,-859.72974342,0.00013195,2]
[394422433,1763556877364,-500.0,0.00013195,2]
[394422434,1763556877394,-859.72974342,0.00013195,2]
[394422435,1763556877425,-859.72974342,0.00013195,2]
[394422436,1763556877756,-177.26514672,0.00013195,2]
[394422437,1763556877775,-122.17205264,0.00013195,2]
[394422438,1763556882287,-10000.01,0.00013063,2]
[394422439,1763556882506,-3994.9779617,0.00013063,2]
[394422440,1763556882529,-2010.0540766,0.00013063,2]
[394422441,1763556882627,-200.56280064,0.00013195,2]
[394422442,1763556882662,-859.72974342,0.00013195,2]
[394422443,1763556882695,-500.0,0.00013195,2]
[394422444,1763556882729,-859.72974342,0.00013195,2]
[394422445,1763556882765,-500.0,0.00013195,2]
[394422446,1763556882800,-859.72974342,0.00013195,2]
[394422447,1763556882827,-500.0,0.00013195,2]
[394422448,1763556882859,-580.77619478,0.00013195,2]
[394422449,1763556882967,-278.95354864,0.00013195,2]
[394422450,1763556882997,-500.0,0.00013195,2]
[394422451,1763556883028,-859.72974342,0.00013195,2]
[394422452,1763556883058,-500.0,0.00013195,2]
[394422453,1763556883094,-859.72974342,0.00013195,2]
[394422454,1763556883124,-500.0,0.00013195,2]
[394422455,1763556883157,-859.72974342,0.00013195,2]
[394422456,1763556883186,-500.0,0.00013195,2]
[394422457,1763556883422,-859.72974342,0.00013195,2]
[394422458,1763556883458,-859.72974342,0.00013195,2]
[394422459,1763556883490,-500.0,0.00013195,2]
[394422460,1763556883522,-859.72974342,0.00013195,2]
[394422461,1763556883556,-859.72974342,0.00013195,2]
[394422462,1763556883584,-500.0,0.00013195,2]
[394422463,1763556883615,-262.44230922,0.00013195,2]
[394422464,1763556883930,-300.23568162,0.00013195,2]
[394422465,1763556883945,-297.05175258,0.00013195,2]
[394422466,1763556883954,-500.0,0.00013195,2]
[394422467,1763556883963,-62.67799084,0.00013195,2]
[394422468,1763556901678,153.11,5e-05,2]
[394422469,1763556901976,153.11,6.2e-05,2]
[394422470,1763556902379,153.11,7.3e-05,2]
[394422471,1763556902620,153.11,8.5e-05,2]
[394422472,1763556902925,153.11,9.7e-05,2]
[394422473,1763556903264,153.11,0.000108,2]
[394422477,1763556991029,-247.09279327,0.00012932,2]
[394422478,1763556994773,-230.23224625,0.00012932,2]
[394422479,1763556997746,-234.2886462,0.00012932,2]
[394422480,1763557051560,-223.57,0.00012703,2]
[394422481,1763557054232,-229.46608671,0.00012703,2]
[394422482,1763557056795,-17.09854104,0.00012703,2]
[394422483,1763557056818,-154.37387356,0.00012803,2]
[394422484,1763557056840,-173.81906672,0.00012932,2]
[394422485,1763557096233,-425.20897207,0.00012675,2]
[394422486,1763557100974,-155.14203475,0.00012675,2]
[394422487,1763557103437,-155.14203475,0.00012675,2]
[394422488,1763557105551,-155.14203475,0.00012675,2]
[394422489,1763557107212,-155.14203475,0.00012675,2]
[394422490,1763557126068,-175.78239429,0.00012548,2]
[394422491,1763557126613,1497.8276039,0.00012241,2]
[394422492,1763557129930,-34.35234806,0.00012548,2]
[394422493,1763557129953,-248.36945596,0.00012675,2]
[394422494,1763557216135,-419.10278784,0.00012575,2]
[394422495,1763557217523,-533.96822758,0.00012575,2]
[394422496,1763557217546,-117.34214574,0.00012675,2]
[394422497,1763557217569,-84.85962668,0.00012739,2]
[394422498,1763557220167,-96.57490231,0.00012739,2]
[394422499,1763557220192,-156.82555523,0.00012803,2]
[394422500,1763557231162,-377.03683551,0.00012803,2]
[394422501,1763557233873,-311.45121328,0.00012803,2]
[394422502,1763557306033,-171.83081564,0.00012548,2]
[394422503,1763557312731,171.83081564,0.00012423,2]
[394422508,1763557396044,-356.79485054,0.00012548,2]
[394422509,1763557398454,-37.54944257,0.00012548,2]
[394422510,1763557398479,-127.56151825,0.00012675,2]
[394422511,1763557411140,-279.72499541,0.00012548,2]
[394422512,1763557434208,158.88859509,0.00012423,2]
[394422513,1763557442074,185.8,5e-05,2]
[394422514,1763557456264,158.88859509,0.00012423,2]
[394422515,1763557478633,158.88859509,0.00012423,2]
[394422516,1763557486608,-155.76761453,0.00012548,2]
[394422517,1763557501964,170.78,5e-05,2]
[394422518,1763557502362,170.78,0.00012,2]
[394422519,1763557591047,-3.12098056,0.00012548,2]
[394422520,1763557591069,-180.28029699,0.00012807,2]
[394422521,1763557591089,-165.0722655,0.00013067,2]
[394422522,1763557592804,-254.12874482,0.00013067,2]
[394422523,1763557592826,-133.38308603,0.00013089,2]
[394422524,1763557605219,166.61691397,0.00012958,2]
[394422525,1763557606096,-166.61691397,0.00013089,2]
[394422526,1763557606116,-185.42901564,0.0001309,2]
[394422527,1763557606138,-38.96504782,0.0001309,2]
[394422528,1763557607608,-252.15,0.0001309,2]
[394422529,1763557613191,8356.37334208,0.00012959,2]
[394422530,1763557630901,669.69,0.00012329,2]
[394422531,1763557641540,558.07,0.00012329,2]
[394422532,1763557642898,-152.45002922,0.00012829,2]
[394422533,1763557648793,-246.6493585,0.00012829,2]
[394422534,1763557650875,-257.97386137,0.00012829,2]
[394422535,1763557652027,465.06,0.00012329,2]
[394422536,1763557662434,387.55,0.00012329,2]
[394422537,1763557672848,322.96,0.00012329,2]
[394422538,1763557683295,269.13,0.00012329,2]
[394422539,1763557693745,224.28,0.00012329,2]
[394422540,1763557704156,186.9,0.00012329,2]
[394422541,1763557704720,-229.1045915,0.00012829,2]
[394422542,1763557709770,-395.41243541,0.00012829,2]
[394422543,1763557714877,155.75,0.00012329,2]
[394422544,1763557725012,778.76,0.00012329,2]
[394422545,1763557742335,177.11,5e-05,2]
[394422546,1763557757241,-354.21,0.00012729,2]
[394422547,1763557758621,-181.88495492,0.00012729,2]
[394422548,1763557760089,-439.72,0.00012729,2]
[394422549,1763557764132,-518.45143231,0.00012729,2]
[394422550,1763557764157,-270.58208871,0.00012829,2]
[394422551,1763557764187,-854.17233649,0.00012959,2]
[394422552,1763557771064,-698.00002822,0.00012959,2]
[394422553,1763557771084,-1112.24652896,0.00013089,2]
[394422555,1763557801078,-371.52696255,0.00012958,2]
[394422556,1763557802701,177.1,5e-05,2]
[394422557,1763557802982,177.1,8.5e-05,2]
[394422558,1763557803337,177.1,0.00012,2]
[394422559,1763557805291,-16.22650849,0.00012958,2]